[Event "Faroes Open 2018"]
[Site "Sandavagur"]
[Date "2018.07.10"]
[Round "5"]
[White "Miezis, Normunds"]
[Black "Haubro, Martin"]
[Result "1-0"]
[ECO "B10"]
[WhiteElo "2468"]
[BlackElo "2373"]
[Annotator "ChessBase"]
[PlyCount "79"]
[EventDate "2018.07.07"]
[EventType "swiss"]
[EventCountry "FAI"]
[SourceTitle "playchess.com"]
[Source "ChessBase"]
[SourceQuality "1"]
[TimeControl "40/5400+30:900+30"]

1. c4 {[%emt 0:00:00]} c6 {[%emt 0:00:29]} 2. e4 {[%emt 0:00:25]} d5 {[%emt 0:00:04]} 3. exd5 {[%emt 0:01:15]} cxd5 {[%emt 0:00:04]} 4. cxd5 {[%emt 0:01:10]} Nf6 {[%emt 0:00:07]} 5. Nc3 {[%emt 0:00:24]} Nxd5 {[%emt 0:00:52]} 6. Nf3 {[%emt 0:00:26]} Nc6 {[%emt 0:02:05]} 7. Bb5 {[%emt 0:06:17]} e6 {[%emt 0:07:26]} 8. O-O {[%emt 0:02:27]} a6 {[%emt 0:11:40]} 9. Bxc6+ {[%emt 0:08:57]} bxc6 {[%emt 0:00:05]} 10. Qa4 {[%emt 0:01:08]} Bd7 {[%emt 0:03:38]} 11. Ne5 {[%emt 0:01:34]} Bd6 {[%emt 0:01:53]} 12. Re1 {[%emt 0:11:57]} Qc7 {[%emt 0:06:33]} 13. d4 {[%emt 0:03:28]} Nxc3 {[%emt 0:16:07]} 14. bxc3 {[%emt 0:00:57]} c5 {[%emt 0:00:16]} 15. Qd1 {[%emt 0:06:00]} cxd4 {[%emt 0:03:30]} 16. cxd4 {[%emt 0:05:21]} O-O {[%emt 0:03:13]} 17. Qg4 {[%emt 0:15:12]} Rfe8 {[%emt 0:06:56]} 18. Bg5 {[%emt 0:10:50]} Bf8 {[%emt 0:09:02]} 19. Bf6 {[%emt 0:08:06]} Rac8 {[%emt 0:04:11]} 20. h4 {[%emt 0:00:47]} Ba4 {[%emt 0:03:26]} 21. h5 {[%emt 0:07:30]} Bc2 {[%emt 0:03:39]} 22. h6 {[%emt 0:01:45]} Bg6 {[%emt 0:02:29]} 23. hxg7 {[%emt 0:02:08]} Bxg7 {[%emt 0:00:08]} 24. Bxg7 {[%emt 0:00:56]} Kxg7 {[%emt 0:00:07]} 25. Re3 {[%emt 0:00:05]} Qc2 {[%emt 0:02:22]} 26. Rf3 {[%emt 0:00:27]} f5 {[%emt 0:02:16]} 27. Qg5 {[%emt 0:00:59]} Rc3 {[%emt 0:00:20]} 28. Rxc3 {[%emt 0:00:34]} Qxc3 {[%emt 0:00:06]} 29. Rc1 {[%emt 0:00:10]} Qa5 {[%emt 0:00:08]} 30. Qg3 {[%emt 0:01:09]} Re7 {[%emt 0:05:09]} 31. Rc8 {[%emt 0:00:49]} Qe1+ {[%emt 0:02:25]} 32. Kh2 {[%emt 0:00:03]} Qe4 {[%emt 0:00:34]} 33. Nxg6 {[%emt 0:01:49]} hxg6 {[%emt 0:00:06]} 34. Qh3 {[%emt 0:00:31]} Kf6 35. Qh8+ Kg5 36. g3 e5 37. dxe5 Kg4 38. Qh3+ Kf3 39. Qg2+ Kg4 40. f3+ 1-0

[Event "Faroes Open 2018"]
[Site "Sandavagur"]
[Date "2018.07.10"]
[Round "5"]
[White "Nielsen, Høgni Egilstoft"]
[Black "Hruby, Milan"]
[Result "1-0"]
[ECO "C55"]
[WhiteElo "2397"]
[BlackElo "2031"]
[Annotator "NA"]
[PlyCount "87"]
[EventDate "2018.07.07"]
[EventType "swiss"]
[EventCountry "FAI"]
[SourceTitle "playchess.com"]
[Source "ChessBase"]
[SourceQuality "1"]
[TimeControl "40/5400+30:900+30"]

1. e4 {[%emt 0:00:00]} e5 {[%emt 0:00:00]} 2. Nf3 {[%emt 0:00:00]} Nc6 {[%emt 0:00:00]} 3. Bc4 {[%emt 0:00:08]} Nf6 {[%emt 0:00:03]} 4. d3 {[%emt 0:00:22]} Be7 {[%emt 0:00:29]} 5. c3 {[%emt 0:00:55]} d6 {[%emt 0:00:24]} 6. Bb3 {[%emt 0:00:22]} O-O {[%emt 0:00:17]} 7. Nbd2 {[%emt 0:00:27]} Na5 {[%emt 0:00:16]} 8. Bc2 {[%emt 0:01:14]} c5 {[%emt 0:00:14]} 9. O-O {[%emt 0:06:51]} Nc6 {[%emt 0:00:15]} 10. Re1 {[%emt 0:00:42]} Re8 {[%emt 0:00:29]} 11. Nf1 {[%emt 0:06:47]} h6 {[%emt 0:00:59]} 12. h3 {[%emt 0:01:47]} Bf8 {[%emt 0:02:40]} 13. Ng3 {[%emt 0:07:03]} d5 {[%emt 0:01:14]} 14. exd5 {[%emt 0:05:29]} Qxd5 {[%emt 0:01:46]} 15. Be3 {[%emt 0:06:33]} b6 {[%emt 0:08:18]} 16. Bb3 {[%emt 0:14:07]} Qd6 {[%emt 0:03:19]} 17. Nh4 {[%emt 0:05:23]} Be6 {[%emt 0:33:44]} 18. Nhf5 {[%emt 0:11:35]} Qd8 {[%emt 0:01:18]} 19. Qf3 {[%emt 0:05:56]} Bd5 {[%emt 0:07:16]} 20. Ne4 {[%emt 0:06:37]} Nxe4 {[%emt 0:03:42]} 21. Bxd5 {[%emt 0:00:55]} Qxd5 {[%emt 0:00:23]} 22. dxe4 {[%emt 0:00:08]} Qe6 {[%emt 0:00:40]} 23. Red1 {[%emt 0:02:17]} Rad8 {[%emt 0:12:39]} 24. Rd5 {[%emt 0:00:44]} Ne7 {[%emt 0:01:00]} 25. Nxe7+ {[%emt 0:00:55]} Bxe7 {[%emt 0:00:17]} 26. Rad1 {[%emt 0:03:39]} Rd6 {[%emt 0:07:46]} 27. c4 {[%emt 0:01:19]} Red8 {[%emt 0:00:07]} 28. Bd2 {[%emt 0:02:26]} Rxd5 {[%emt 0:03:07]} 29. exd5 {[%emt 0:03:08]} Qg6 {[%emt 0:00:46]} 30. Re1 {[%emt 0:01:07]} Bd6 {[%emt 0:00:33]} 31. Qg4 {[%emt 0:01:14]} Kh7 {[%emt 0:00:49]} 32. Bc3 {[%emt 0:01:41]} Qxg4 {[%emt 0:03:07]} 33. hxg4 {[%emt 0:00:02]} f6 {[%emt 0:00:22]} 34. f3 {[%emt 0:01:30]} Kg6 {[%emt 0:00:08]} 35. Kf2 {[%emt 0:00:31]} Rh8 {[%emt 0:00:17]} 36. a4 {[%emt 0:02:32]} a5 37. f4 h5 38. fxe5 fxe5 39. Bxe5 Bxe5 40. Rxe5 Rf8+ 41. Kg3 h4+ 42. Kxh4 Rf4 43. Re6+ Kf7 44. b3 1-0

[Event "Faroes Open 2018"]
[Site "Sandavagur"]
[Date "2018.07.10"]
[Round "5"]
[White "Kristiansen, Jens"]
[Black "Rodgaard, John"]
[Result "1/2-1/2"]
[ECO "D17"]
[WhiteElo "2380"]
[BlackElo "2319"]
[Annotator "NA"]
[PlyCount "88"]
[EventDate "2018.07.07"]
[EventType "swiss"]
[EventCountry "FAI"]
[SourceTitle "playchess.com"]
[Source "ChessBase"]
[SourceQuality "1"]
[TimeControl "40/5400+30:900+30"]

1. d4 {[%emt 0:00:00]} d5 {[%emt 0:00:05]} 2. c4 {[%emt 0:00:00]} c6 {[%emt 0:00:28]} 3. Nf3 {[%emt 0:00:00]} Nf6 {[%emt 0:00:39]} 4. Nc3 {[%emt 0:00:00]} dxc4 {[%emt 0:01:17]} 5. a4 {[%emt 0:00:08]} Bf5 {[%emt 0:00:49]} 6. Nh4 {[%emt 0:00:17]} Bc8 {[%emt 0:04:16]} 7. e3 {[%emt 0:00:41]} e5 {[%emt 0:02:45]} 8. Bxc4 {[%emt 0:00:29]} exd4 {[%emt 0:00:32]} 9. exd4 {[%emt 0:00:07]} Be7 {[%emt 0:00:47]} 10. O-O {[%emt 0:00:15]} O-O {[%emt 0:00:11]} 11. Re1 {[%emt 0:02:41]} Na6 {[%emt 0:05:12]} 12. Qb3 {[%emt 0:11:05]} Nc7 {[%emt 0:04:05]} 13. Nf3 {[%emt 0:05:03]} Nfd5 {[%emt 0:20:45]} 14. Bxd5 {[%emt 0:15:58]} Nxd5 {[%emt 0:03:24]} 15. Nxd5 {[%emt 0:00:06]} cxd5 {[%emt 0:00:12]} 16. Bf4 {[%emt 0:00:11]} b6 {[%emt 0:18:13]} 17. Rac1 {[%emt 0:06:13]} Be6 {[%emt 0:01:35]} 18. Bc7 {[%emt 0:01:24]} Qe8 {[%emt 0:00:51]} 19. Rc3 {[%emt 0:06:59]} Rc8 {[%emt 0:05:48]} 20. Rec1 {[%emt 0:03:36]} f6 {[%emt 0:05:23]} 21. Bf4 {[%emt 0:05:05]} Rxc3 {[%emt 0:01:00]} 22. Rxc3 {[%emt 0:00:09]} Rf7 {[%emt 0:04:19]} 23. h3 {[%emt 0:03:16]} Bf8 {[%emt 0:00:31]} 24. Bc7 {[%emt 0:03:49]} Qd7 {[%emt 0:03:42]} 25. Bb8 {[%emt 0:07:12]} Qd8 {[%emt 0:02:30]} 26. Bf4 {[%emt 0:00:28]} Re7 {[%emt 0:04:49]} 27. Qc2 {[%emt 0:04:11]} Qd7 {[%emt 0:00:59]} 28. Rc7 {[%emt 0:02:29]} Bf5 {[%emt 0:03:07]} 29. Qb3 {[%emt 0:10:28]} Qd8 {[%emt 0:00:10]} 30. Rc3 {[%emt 0:01:36]} g5 {[%emt 0:01:23]} 31. Bg3 {[%emt 0:00:47]} Re2 {[%emt 0:00:46]} 32. Qb5 {[%emt 0:03:30]} Re4 {[%emt 0:01:19]} 33. Rc7 {[%emt 0:02:11]} Re7 {[%emt 0:00:22]} 34. Qc6 {[%emt 0:01:19]} Kf7 {[%emt 0:00:28]} 35. b4 {[%emt 0:02:06]} Rxc7 36. Bxc7 Qd7 37. Qxd7+ Bxd7 38. b5 Bf5 39. a5 bxa5 40. Bxa5 Bd3 41. b6 axb6 42. Bxb6 Bb4 43. Nh2 h5 44. Nf1 Ke6 1/2-1/2

[Event "Faroes Open 2018"]
[Site "Sandavagur"]
[Date "2018.07.10"]
[Round "5"]
[White "Nielsen, Rógvi Egilstoft"]
[Black "Greenfeld, Alon"]
[Result "1/2-1/2"]
[ECO "C77"]
[WhiteElo "2337"]
[BlackElo "2496"]
[Annotator "RC"]
[PlyCount "81"]
[EventDate "2018.07.07"]
[EventType "swiss"]
[EventCountry "FAI"]
[SourceTitle "playchess.com"]
[Source "ChessBase"]
[SourceQuality "1"]
[TimeControl "40/5400+30:900+30"]

1. e4 {[%emt 0:00:00]} e5 {[%emt 0:01:14]} 2. Nf3 {[%emt 0:00:00]} Nc6 {[%emt 0:00:35]} 3. Bb5 {[%emt 0:00:39]} a6 {[%emt 0:01:45]} 4. Ba4 {[%emt 0:00:08]} Nf6 {[%emt 0:00:15]} 5. Qe2 {[%emt 0:00:13]} b5 {[%emt 0:01:53]} 6. Bb3 {[%emt 0:00:07]} Be7 {[%emt 0:00:12]} 7. c3 {[%emt 0:00:43]} O-O {[%emt 0:02:47]} 8. d4 {[%emt 0:00:26]} d6 {[%emt 0:07:16]} 9. Nbd2 {[%emt 0:00:09]} exd4 {[%emt 0:08:36]} 10. cxd4 {[%emt 0:00:58]} Bg4 {[%emt 0:00:37]} 11. Qe3 {[%emt 0:00:36]} d5 {[%emt 0:16:40]} 12. Ne5 {[%emt 0:16:37]} Nxe5 {[%emt 0:06:16]} 13. dxe5 {[%emt 0:00:10]} Nxe4 {[%emt 0:00:15]} 14. Nxe4 {[%emt 0:01:00]} dxe4 {[%emt 0:00:07]} 15. Qxe4 {[%emt 0:00:50]} Be6 {[%emt 0:01:10]} 16. Bc2 {[%emt 0:03:39]} g6 {[%emt 0:00:29]} 17. O-O {[%emt 0:00:48]} Bf5 {[%emt 0:22:04]} 18. Qe2 {[%emt 0:00:26]} Bxc2 {[%emt 0:00:04]} 19. Qxc2 {[%emt 0:00:06]} c5 {[%emt 0:00:13]} 20. Bh6 {[%emt 0:04:25]} Re8 {[%emt 0:00:14]} 21. f4 {[%emt 0:00:10]} f5 {[%emt 0:07:46]} 22. exf6 {[%emt 0:29:36]} Qd4+ {[%emt 0:00:08]} 23. Kh1 {[%emt 0:00:50]} Bxf6 {[%emt 0:00:08]} 24. Rad1 {[%emt 0:06:20]} Qxb2 {[%emt 0:02:18]} 25. Qxc5 {[%emt 0:00:16]} Qxa2 {[%emt 0:00:32]} 26. f5 {[%emt 0:01:38]} g5 {[%emt 0:03:43]} 27. Qc6 {[%emt 0:22:20]} Qf7 {[%emt 0:02:27]} 28. Rd6 {[%emt 0:00:21]} Be5 {[%emt 0:05:35]} 29. Rd7 {[%emt 0:01:22]} Qc4 {[%emt 0:04:05]} 30. Qxc4+ {[%emt 0:05:47]} bxc4 {[%emt 0:00:03]} 31. h4 {[%emt 0:00:37]} Red8 {[%emt 0:02:58]} 32. Re7 {[%emt 0:01:51]} Bf6 {[%emt 0:00:58]} 33. Re6 Kf7 34. hxg5 Be7 35. Rc6 Rdc8 36. g6+ hxg6 37. fxg6+ Kg8 38. Re6 Bf8 39. Bxf8 Rxf8 40. Rc1 Rfc8 41. Re4 1/2-1/2

[Event "Faroes Open 2018"]
[Site "Sandavagur"]
[Date "2018.07.10"]
[Round "5"]
[White "Nilssen, John Arni"]
[Black "Nilssen, Ellen Fredericia"]
[Result "1/2-1/2"]
[ECO "D20"]
[WhiteElo "2301"]
[BlackElo "2152"]
[Annotator "ChessBase"]
[PlyCount "27"]
[EventDate "2018.07.07"]
[EventType "swiss"]
[EventCountry "FAI"]
[SourceTitle "playchess.com"]
[Source "ChessBase"]
[SourceQuality "1"]
[TimeControl "40/5400+30:900+30"]

1. d4 {[%emt 0:03:17]} d5 {[%emt 0:00:00]} 2. c4 {[%emt 0:00:05]} dxc4 {[%emt 0:00:01]} 3. e4 {[%emt 0:00:07]} Nf6 {[%emt 0:00:25]} 4. e5 {[%emt 0:00:10]} Nd5 {[%emt 0:00:30]} 5. Bxc4 {[%emt 0:00:09]} Nb6 {[%emt 0:00:40]} 6. Bb3 {[%emt 0:00:09]} Nc6 {[%emt 0:00:34]} 7. Nf3 {[%emt 0:00:09]} Bg4 {[%emt 0:00:33]} 8. Ng5 {[%emt 0:00:13]} Bxd1 {[%emt 0:00:05]} 9. Bxf7+ {[%emt 0:00:07]} Kd7 {[%emt 0:00:05]} 10. Be6+ {[%emt 0:00:05]} Ke8 {[%emt 0:00:07]} 11. Bf7+ {[%emt 0:00:06]} Kd7 {[%emt 0:00:16]} 12. Be6+ {[%emt 0:00:04]} Ke8 {[%emt 0:00:03]} 13. Bf7+ {[%emt 0:00:07]} Kd7 {[%emt 0:00:20]} 14. Be6+ {[%emt 0:00:10]} 1/2-1/2

[Event "Faroes Open 2018"]
[Site "Sandavagur"]
[Date "2018.07.10"]
[Round "5"]
[White "Simonsen, Hans Kristian"]
[Black "Djurhuus, Arant"]
[Result "1-0"]
[ECO "A27"]
[WhiteElo "2150"]
[BlackElo "1703"]
[Annotator "NA"]
[PlyCount "51"]
[EventDate "2018.07.07"]
[EventType "swiss"]
[EventCountry "FAI"]
[SourceTitle "playchess.com"]
[Source "ChessBase"]
[SourceQuality "1"]
[TimeControl "40/5400+30:900+30"]

1. c4 {[%emt 0:00:00]} e5 {[%emt 0:00:00]} 2. Nc3 {[%emt 0:00:02]} Nc6 {[%emt 0:00:18]} 3. Nf3 {[%emt 0:01:11]} g6 {[%emt 0:03:28]} 4. h4 {[%emt 0:00:32]} Nf6 {[%emt 0:08:01]} 5. d4 {[%emt 0:08:29]} exd4 {[%emt 0:09:03]} 6. Nxd4 {[%emt 0:00:05]} Bb4 {[%emt 0:06:14]} 7. Nxc6 {[%emt 0:02:22]} bxc6 {[%emt 0:16:35]} 8. Qd4 {[%emt 0:00:53]} c5 {[%emt 0:01:41]} 9. Qd3 {[%emt 0:06:08]} d5 {[%emt 0:05:01]} 10. a3 {[%emt 0:00:13]} Ba5 {[%emt 0:02:53]} (10... Bxc3+ $1 $11 11. Qxc3 d4) 11. cxd5 $11 {[%emt 0:02:22]} (11. Bg5 $1 $14 O-O 12. O-O-O (12. cxd5 Rb8 $11)) 11... O-O {[%emt 0:03:19]} 12. Bd2 {[%emt 0:04:28]} Bf5 {[%emt 0:01:31]} 13. Qc4 {[%emt 0:00:06]} Re8 {[%emt 0:01:10]} 14. f3 {[%emt 0:00:23]} Qd6 {[%emt 0:01:30]} 15. O-O-O {[%emt 0:00:59]} Rab8 {[%emt 0:08:15]} 16. e4 {[%emt 0:01:01]} Bd7 {[%emt 0:09:19]} 17. Be3 {[%emt 0:01:44]} Bxc3 {[%emt 0:01:43]} 18. Qxc3 {[%emt 0:00:03]} Ba4 {[%emt 0:04:05]} 19. Bxc5 {[%emt 0:00:39]} Qf4+ {[%emt 0:01:29]} 20. Be3 {[%emt 0:00:36]} Qd6 {[%emt 0:00:54]} 21. Bc4 {[%emt 0:00:37]} Bxd1 {[%emt 0:00:59]} 22. Rxd1 {[%emt 0:00:10]} Nd7 {[%emt 0:00:26]} 23. h5 {[%emt 0:01:52]} Nc5 {[%emt 0:05:46]} 24. hxg6 {[%emt 0:01:21]} fxg6 {[%emt 0:00:14]} 25. Bxc5 {[%emt 0:00:19]} Qxc5 {[%emt 0:00:50]} 26. d6+ {[%emt 0:00:06]} 1-0

[Event "Faroes Open 2018"]
[Site "Sandavagur"]
[Date "2018.07.10"]
[Round "5"]
[White "Spiesberger, Gerhard"]
[Black "Haubro, Siv"]
[Result "1-0"]
[ECO "A04"]
[WhiteElo "2043"]
[BlackElo "1780"]
[Annotator "NA"]
[PlyCount "56"]
[EventDate "2018.07.07"]
[EventType "swiss"]
[EventCountry "FAI"]
[SourceTitle "playchess.com"]
[Source "ChessBase"]
[SourceQuality "1"]
[TimeControl "40/5400+30:900+30"]

1. Nf3 {[%emt 0:00:00]} f5 {[%emt 0:00:20]} 2. Nc3 {[%emt 0:02:04]} Nf6 {[%emt 0:00:12]} 3. d3 {[%emt 0:00:16]} d6 {[%emt 0:05:51]} 4. e4 {[%emt 0:01:10]} e5 {[%emt 0:00:24]} 5. Bg5 {[%emt 0:00:29]} Be7 {[%emt 0:03:19]} 6. exf5 {[%emt 0:07:01]} Bxf5 {[%emt 0:00:35]} 7. Nh4 {[%emt 0:00:56]} Be6 {[%emt 0:03:18]} 8. Be2 {[%emt 0:03:51]} O-O {[%emt 0:00:28]} 9. Qd2 {[%emt 0:05:17]} Nc6 {[%emt 0:08:54]} 10. Nf3 {[%emt 0:04:31]} Ng4 $11 {[%emt 0:09:58]} (10... h6 $17 11. Bh4 Nd5 12. Bxe7 Ncxe7) 11. O-O {[%emt 0:17:23]} h6 {[%emt 0:08:32]} 12. Bxe7 {[%emt 0:09:36]} Qxe7 {[%emt 0:01:54]} 13. d4 {[%emt 0:06:17]} exd4 {[%emt 0:14:06]} 14. Nxd4 {[%emt 0:02:21]} Nxd4 {[%emt 0:02:00]} 15. Bxg4 {[%emt 0:06:45]} Bxg4 16. Qxd4 Be6 {[%emt 0:05:04]} 17. Rfe1 {[%emt 0:06:43]} Qf7 {[%emt 0:02:31]} 18. Nb5 {[%emt 0:02:12]} Bd7 {[%emt 0:11:57]} 19. Nc3 {[%emt 0:07:30]} c5 {[%emt 0:06:05]} 20. Qd5 {[%emt 0:01:27]} Bc6 {[%emt 0:00:47]} 21. Qxf7+ {[%emt 0:01:46]} Kxf7 {[%emt 0:02:42]} 22. Rad1 {[%emt 0:01:15]} Rad8 {[%emt 0:00:31]} 23. Nd5 {[%emt 0:00:42]} Rfe8 {[%emt 0:05:18]} 24. Ne3 {[%emt 0:02:18]} Re5 {[%emt 0:03:27]} 25. f3 {[%emt 0:01:41]} Ke6 {[%emt 0:01:09]} 26. Kf2 {[%emt 0:00:35]} Kd7 {[%emt 0:00:45]} 27. Rxd6+ {[%emt 0:02:06]} Kxd6 {[%emt 0:00:09]} 28. Nc4+ {[%emt 0:00:09]} Kd5 1-0

[Event "Faroes Open 2018"]
[Site "Sandavagur"]
[Date "2018.07.10"]
[Round "5"]
[White "Esteve Sanchez, Sergio"]
[Black "Jotic, Vladimir"]
[Result "0-1"]
[ECO "A01"]
[WhiteElo "1994"]
[BlackElo "2387"]
[Annotator "NA"]
[PlyCount "92"]
[EventDate "2018.07.07"]
[EventType "swiss"]
[EventCountry "FAI"]
[SourceTitle "playchess.com"]
[Source "ChessBase"]
[SourceQuality "1"]
[TimeControl "40/5400+30:900+30"]

1. b3 {[%emt 0:00:00]} e5 {[%emt 0:02:05]} 2. Bb2 {[%emt 0:00:00]} d6 {[%emt 0:02:12]} 3. e3 {[%emt 0:00:00]} Nf6 {[%emt 0:00:49]} 4. Nf3 {[%emt 0:07:13]} c5 {[%emt 0:25:58]} 5. d4 {[%emt 0:02:19]} e4 {[%emt 0:01:04]} 6. Ng1 {[%emt 0:08:59]} d5 {[%emt 0:04:07]} 7. h3 {[%emt 0:03:42]} cxd4 {[%emt 0:05:18]} 8. Qxd4 {[%emt 0:07:49]} Nc6 {[%emt 0:03:19]} 9. Bb5 {[%emt 0:00:43]} Be7 {[%emt 0:05:03]} 10. Nc3 {[%emt 0:01:47]} O-O {[%emt 0:00:23]} 11. Qd2 {[%emt 0:08:27]} d4 {[%emt 0:04:45]} 12. exd4 {[%emt 0:01:10]} Qxd4 {[%emt 0:00:20]} 13. O-O-O {[%emt 0:08:56]} Qxd2+ {[%emt 0:00:53]} 14. Rxd2 {[%emt 0:01:06]} Be6 {[%emt 0:12:06]} 15. Bxc6 {[%emt 0:07:00]} bxc6 {[%emt 0:00:02]} 16. Re2 {[%emt 0:00:35]} Rfe8 {[%emt 0:14:22]} 17. g3 {[%emt 0:05:49]} Bd5 {[%emt 0:00:45]} 18. Rh2 {[%emt 0:00:56]} Bd6 {[%emt 0:01:04]} 19. Nd1 {[%emt 0:06:43]} Be5 {[%emt 0:02:52]} 20. Ne3 {[%emt 0:01:36]} Bxb2+ {[%emt 0:00:12]} 21. Kxb2 {[%emt 0:00:02]} Be6 {[%emt 0:00:33]} 22. Rd2 {[%emt 0:01:23]} a5 {[%emt 0:02:45]} 23. Ne2 {[%emt 0:01:55]} a4 {[%emt 0:00:07]} 24. Nd4 {[%emt 0:04:34]} axb3 {[%emt 0:00:49]} 25. axb3 {[%emt 0:02:20]} Bd7 {[%emt 0:00:13]} 26. Rh1 {[%emt 0:02:37]} Ra5 {[%emt 0:01:40]} 27. h4 {[%emt 0:00:12]} Nd5 {[%emt 0:03:23]} 28. Nc4 {[%emt 0:07:08]} Ra6 {[%emt 0:00:18]} 29. Ra1 {[%emt 0:00:24]} Rxa1 {[%emt 0:00:26]} 30. Kxa1 {[%emt 0:00:02]} h5 {[%emt 0:02:10]} 31. Nd6 {[%emt 0:02:08]} e3 {[%emt 0:01:04]} 32. fxe3 {[%emt 0:00:42]} Rxe3 {[%emt 0:00:02]} 33. c4 {[%emt 0:00:43]} Nf6 {[%emt 0:00:58]} 34. b4 {[%emt 0:00:40]} Rxg3 {[%emt 0:00:23]} 35. Kb2 {[%emt 0:02:32]} Rg4 {[%emt 0:01:13]} 36. b5 cxb5 37. c5 Rxh4 38. c6 Bxc6 39. Nxc6 Ne4 40. Nf5 Rf4 41. Nfe7+ Kh7 42. Rd5 g6 43. Rxb5 h4 44. Rb3 Ng5 45. Nd5 Rf2+ 46. Kc1 h3 0-1

[Event "Faroes Open 2018"]
[Site "Sandavagur"]
[Date "2018.07.10"]
[Round "5"]
[White "Fruehauf, Norbert"]
[Black "Maroroa, Sue"]
[Result "1/2-1/2"]
[ECO "B22"]
[WhiteElo "1958"]
[BlackElo "2104"]
[Annotator "NA"]
[PlyCount "66"]
[EventDate "2018.07.07"]
[EventType "swiss"]
[EventCountry "FAI"]
[SourceTitle "playchess.com"]
[Source "ChessBase"]
[SourceQuality "1"]
[TimeControl "40/5400+30:900+30"]

1. e4 {[%emt 0:00:00]} c5 {[%emt 0:00:24]} 2. c3 {[%emt 0:00:00]} d5 {[%emt 0:00:08]} 3. exd5 {[%emt 0:00:00]} Qxd5 {[%emt 0:00:06]} 4. d4 {[%emt 0:00:08]} Nc6 {[%emt 0:00:11]} 5. dxc5 {[%emt 0:00:41]} Qxd1+ {[%emt 0:00:45]} 6. Kxd1 {[%emt 0:00:07]} e6 {[%emt 0:01:30]} 7. b4 {[%emt 0:07:24]} a5 {[%emt 0:00:16]} 8. Bd2 {[%emt 0:00:08]} Nf6 {[%emt 0:00:48]} 9. f3 {[%emt 0:00:54]} axb4 {[%emt 0:02:54]} 10. cxb4 {[%emt 0:00:23]} Nd5 {[%emt 0:00:11]} 11. Bb5 {[%emt 0:00:51]} Bd7 {[%emt 0:00:13]} 12. Bxc6 {[%emt 0:00:54]} Bxc6 {[%emt 0:00:22]} 13. Ne2 {[%emt 0:02:10]} Be7 {[%emt 0:07:18]} 14. Rg1 {[%emt 0:25:59]} O-O {[%emt 0:10:35]} 15. a3 {[%emt 0:04:24]} Bf6 {[%emt 0:01:04]} 16. Bc3 $17 {[%emt 0:00:07]} Bxc3 {[%emt 0:04:22]} 17. Nexc3 {[%emt 0:04:48]} Nxb4 {[%emt 0:00:33]} 18. Ke2 {[%emt 0:02:55]} Na6 {[%emt 0:04:33]} 19. Nd2 {[%emt 0:00:56]} Nxc5 {[%emt 0:00:22]} 20. Nc4 {[%emt 0:01:55]} Na4 {[%emt 0:04:07]} 21. Rgc1 {[%emt 0:02:43]} Nxc3+ {[%emt 0:19:23]} 22. Rxc3 {[%emt 0:00:03]} Bb5 {[%emt 0:00:01]} 23. Ke3 {[%emt 0:02:23]} Rfc8 {[%emt 0:01:28]} 24. Kd4 {[%emt 0:02:37]} Ra4 {[%emt 0:01:15]} 25. Rac1 {[%emt 0:01:02]} h5 {[%emt 0:06:02]} 26. g3 {[%emt 0:00:28]} g6 {[%emt 0:00:30]} 27. f4 {[%emt 0:04:01]} Kg7 {[%emt 0:00:50]} 28. h4 {[%emt 0:00:08]} Kf6 {[%emt 0:01:30]} 29. R1c2 {[%emt 0:00:06]} Kf5 {[%emt 0:01:07]} 30. Rc1 {[%emt 0:00:19]} f6 {[%emt 0:02:46]} 31. R1c2 {[%emt 0:00:29]} e5+ {[%emt 0:01:40]} 32. fxe5 {[%emt 0:00:20]} fxe5+ {[%emt 0:00:04]} 33. Kd5 {[%emt 0:00:20]} Bxc4+ {[%emt 0:00:22]} 1/2-1/2

[Event "Faroes Open 2018"]
[Site "Sandavagur"]
[Date "2018.07.10"]
[Round "5"]
[White "Fjallheim, Leif Reinert"]
[Black "Gregersen, Einar"]
[Result "1-0"]
[ECO "B23"]
[WhiteElo "1886"]
[BlackElo "1665"]
[Annotator "NA"]
[PlyCount "65"]
[EventDate "2018.07.07"]
[EventType "swiss"]
[EventCountry "FAI"]
[SourceTitle "playchess.com"]
[Source "ChessBase"]
[SourceQuality "1"]
[TimeControl "40/5400+30:900+30"]

1. e4 {[%emt 0:00:00]} c5 {[%emt 0:00:00]} 2. Nc3 {[%emt 0:00:01]} g6 {[%emt 0:00:29]} 3. f4 {[%emt 0:02:25]} Nc6 {[%emt 0:00:29]} 4. Nf3 {[%emt 0:00:22]} Bg7 {[%emt 0:00:23]} 5. Bc4 {[%emt 0:01:35]} e6 {[%emt 0:00:33]} 6. O-O {[%emt 0:01:09]} Nge7 {[%emt 0:00:55]} 7. d3 {[%emt 0:00:42]} O-O {[%emt 0:00:41]} 8. Qe1 {[%emt 0:02:12]} d5 {[%emt 0:01:27]} 9. Bb3 {[%emt 0:01:20]} Na5 {[%emt 0:00:55] LiveBook: 48 Games} 10. Ne2 {[%emt 0:07:02]} (10. e5 $15) 10... dxe4 {[%emt 0:02:36]} 11. dxe4 {[%emt 0:00:19]} c4 {[%emt 0:00:53]} 12. Bd2 {[%emt 0:04:49]} Nec6 {[%emt 0:01:28]} 13. Ne5 $19 {[%emt 0:30:37]} (13. Ba4 $17) 13... cxb3 {[%emt 0:05:04]} 14. axb3 {[%emt 0:02:21]} Bxe5 {[%emt 0:00:48]} 15. fxe5 {[%emt 0:01:24]} b6 {[%emt 0:03:29]} 16. Bh6 {[%emt 0:05:19]} Re8 {[%emt 0:07:16]} 17. Rd1 {[%emt 0:11:21]} Qe7 {[%emt 0:03:08]} 18. Qg3 {[%emt 0:06:45]} Ba6 {[%emt 0:09:42]} 19. Rf2 {[%emt 0:05:55]} Qc5 {[%emt 0:01:50]} 20. Qf4 {[%emt 0:02:54]} Re7 {[%emt 0:16:54]} 21. Rd5 {[%emt 0:04:45]} f5 {[%emt 0:14:17]} 22. exf6 {[%emt 0:02:23]} Qxf2+ {[%emt 0:05:26]} 23. Qxf2 {[%emt 0:01:23]} Rf7 {[%emt 0:00:32]} 24. Rd6 {[%emt 0:01:12]} Ne5 {[%emt 0:00:43]} 25. h3 {[%emt 0:01:10]} Nac6 {[%emt 0:00:14]} 26. Nd4 {[%emt 0:00:47]} Rc8 {[%emt 0:07:15]} 27. Nxe6 {[%emt 0:00:52]} Nb4 {[%emt 0:00:32]} 28. Rd8+ {[%emt 0:00:55]} Rxd8 {[%emt 0:00:09]} 29. Nxd8 {[%emt 0:00:01]} Rd7 {[%emt 0:00:16]} 30. f7+ {[%emt 0:00:44]} Nxf7 {[%emt 0:00:19]} 31. Qf6 {[%emt 0:00:28]} Nxh6 {[%emt 0:01:19]} 32. Ne6 {[%emt 0:00:32]} Rf7 {[%emt 0:04:29]} 33. Qd8+ {[%emt 0:00:13]} 1-0